fUST/lending_fUST_20250226
["ID","MTS","AMOUNT","RATE_DAILY","PERIOD"]
[354496266,1740538246884,-502.71095111,0.00038356,2]
[354496267,1740538246894,-500.30937271,0.00038356,2]
[354496268,1740538246905,-850.65,0.00038356,2]
[354496269,1740538246917,-500.0,0.00038356,2]
[354496270,1740538246928,-303.43538847,0.00038456,2]
[354496271,1740538246939,-500.0,0.0003863,2]
[354496272,1740538246950,-500.0,0.0003863,2]
[354496273,1740538246961,-1006.6,0.0003863,2]
[354496274,1740538246972,-502.53180985,0.0003863,2]
[354496275,1740538246983,-504.77744416,0.0003863,2]
[354496276,1740538246994,-500.0,0.0003863,2]
[354496277,1740538247004,-259.23827133,0.0003863,2]
[354496278,1740538247015,-500.0,0.0003863,2]
[354496279,1740538247026,-500.0,0.0003863,2]
[354496280,1740538247037,-500.0,0.0003863,2]
[354496281,1740538247049,-824.98,0.0003863,2]
[354496282,1740538247060,-500.0,0.0003863,2]
[354496283,1740538247072,-502.3962296,0.0003863,2]
[354496284,1740538247083,-502.72093926,0.0003863,2]
[354496285,1740538247094,-500.0,0.0003863,2]
[354496286,1740538247105,-500.0,0.0003863,2]
[354496287,1740538247116,-222.46215914,0.0003863,2]
[354496288,1740538247127,-500.0,0.0003863,2]
[354496289,1740538247138,-502.28265867,0.0003863,2]
[354496290,1740538247149,-877.0,0.0003863,2]
[354496291,1740538247160,-500.0,0.0003863,2]
[354496292,1740538247171,-500.0,0.0003863,2]
[354496293,1740538247183,-500.0,0.0003863,2]
[354496294,1740538247193,-500.0,0.0003863,2]
[354496295,1740538247205,-500.0,0.0003863,2]
[354496296,1740538247218,-500.0,0.0003863,2]
[354496297,1740538247229,-500.0,0.0003863,2]
[354496298,1740538247239,-500.0,0.0003863,2]
[354496299,1740538247251,-500.0,0.0003863,2]
[354496300,1740538247261,-522.17247285,0.0003863,2]
[354496301,1740538247273,-500.0,0.0003863,2]
[354496302,1740538247283,-500.0,0.0003863,2]
[354496303,1740538247294,-605.21,0.0003863,2]
[354496304,1740538247305,-526.23,0.0003863,2]
[354496305,1740538247315,-500.0,0.0003863,2]
[354496306,1740538247326,-500.0,0.0003863,2]
[354496307,1740538247337,-661.78,0.0003863,2]
[354496308,1740538247348,-500.0,0.0003863,2]
[354496309,1740538247358,-5682.46,0.0003863,2]
[354496310,1740538247368,-741.74,0.0003863,2]
[354496311,1740538247379,-500.0,0.0003863,2]
[354496312,1740538247390,-500.0,0.0003863,2]
[354496313,1740538247400,-500.0,0.0003863,55]
[354496314,1740538247413,-500.0,0.0003863,2]
[354496315,1740538247423,-500.0,0.0003863,2]
[354496316,1740538247433,-1955.7,0.0003863,2]
[354496317,1740538247443,-500.0,0.0003863,2]
[354496318,1740538247453,-431.37885055,0.0003863,2]
[354496319,1740538247465,-500.0,0.0003863,2]
[354496320,1740538247476,-1252.97,0.0003863,2]
[354496321,1740538247486,-547.59,0.0003863,2]
[354496322,1740538247496,-500.0,0.0003863,2]
[354496323,1740538247507,-1246.95,0.0003863,2]
[354496324,1740538247517,-500.0,0.0003863,2]
[354496325,1740538247528,-500.0,0.0003863,2]
[354496326,1740538247539,-500.0,0.0003863,2]
[354496327,1740538247550,-850.65,0.0003863,2]
[354496328,1740538247562,-504.34115355,0.0003863,2]
[354496329,1740538247573,-273.32132852,0.00038699,2]
[354496330,1740538247584,-273.32132848,0.00038725,2]
[354496331,1740538247595,-273.32132848,0.00038752,2]
[354496332,1740538247606,-273.32132848,0.00038778,2]
[354496333,1740538247618,-6208.3412784,0.00038789,3]
[354496334,1740538247629,-500.0,0.00038798,2]
[354496335,1740538247640,-3203.57,0.00038798,2]
[354496336,1740538247651,-7962.1,0.00038798,2]
[354496337,1740538247662,-500.0,0.00038798,2]
[354496338,1740538247673,-697.77,0.00038798,2]
[354496339,1740538247683,-2700.91,0.00038798,2]
[354496340,1740538247694,-1916.86,0.00038798,2]
[354496341,1740538247704,-824.7,0.00038798,2]
[354496342,1740538247716,-1162.42,0.00038798,2]
[354496343,1740538247727,-5709.48,0.00038798,2]
[354496344,1740538247738,-12580.39,0.00038798,2]
[354496345,1740538247749,-563.84,0.00038798,2]
[354496346,1740538247759,-1636.69,0.00038798,2]
[354496347,1740538247770,-500.0,0.00038798,2]
[354496348,1740538247781,-4094.91,0.00038798,2]
[354496349,1740538247791,-2045.59,0.00038798,2]
[354496350,1740538247802,-13622.91,0.00038798,2]
[354496351,1740538247812,-5717.48,0.00038798,2]
[354496352,1740538247823,-501.3946324,0.00038798,2]
[354496353,1740538247834,-9703.69,0.00038798,2]
[354496354,1740538247845,-6098.06,0.00038798,2]
[354496355,1740538247855,-10378.07,0.00038798,2]
[354496356,1740538247866,-524.77,0.00038799,2]
[354496357,1740538247876,-1578.33,0.00038799,2]
[354496358,1740538247887,-499.96545085,0.00038799,2]
[354496359,1740538247898,-500.0,0.00038799,2]
[354496360,1740538247909,-500.0,0.00038799,2]
[354496361,1740538247919,-501.19764389,0.00038799,2]
[354496362,1740538247930,-500.0,0.00038799,2]
[354496363,1740538247940,-1737.34,0.00038799,2]
[354496364,1740538247951,-500.0,0.00038799,2]
[354496365,1740538247962,-2672.87,0.00038799,2]
[354496366,1740538247972,-500.0,0.00038799,2]
[354496367,1740538247983,-500.0,0.00038799,2]
[354496368,1740538247993,-500.0,0.00038799,2]
[354496369,1740538248003,-500.92709102,0.00038799,2]
[354496370,1740538248014,-500.0,0.00038799,2]
[354496371,1740538248025,-601.53,0.00038799,2]
[354496372,1740538248035,-500.0,0.00038799,2]
[354496373,1740538248046,-500.0,0.00038799,2]
[354496374,1740538248056,-2062.7,0.00038799,2]
[354496375,1740538248067,-1000.0,0.00038799,2]
[354496376,1740538248078,-694.72,0.00038799,2]
[354496377,1740538248089,-1067.53,0.00038799,2]
[354496378,1740538248100,-500.0,0.00038799,2]
[354496379,1740538248111,-500.0,0.00038799,2]
[354496380,1740538248122,-500.0,0.00038799,2]
[354496381,1740538248132,-500.0,0.00038799,2]
[354496382,1740538248143,-1135.11,0.00038799,2]
[354496383,1740538248154,-683.18,0.00038799,2]
[354496384,1740538248164,-1350.48,0.00038799,2]
[354496385,1740538248175,-500.0,0.00038799,2]
[354496386,1740538248186,-1132.35,0.00038799,2]
[354496387,1740538248197,-500.0,0.00038799,2]
[354496388,1740538248207,-500.774328,0.00038799,2]
[354496389,1740538248218,-500.0,0.00038799,2]
[354496390,1740538248228,-1116.35,0.00038799,2]
[354496391,1740538248239,-500.0,0.00038799,2]
[354496392,1740538248249,-563.43,0.00038799,2]
[354496393,1740538248261,-500.0,0.00038799,2]
[354496394,1740538248270,-500.0,0.00038799,2]
[354496395,1740538248280,-637.3,0.00038799,2]
[354496396,1740538248291,-583.15,0.00038799,2]
[354496397,1740538248598,-5926.86,0.00038799,2]
[354496398,1740538248620,-500.0,0.00038799,2]
[354496399,1740538248635,-1348.7,0.00038799,2]
[354496400,1740538248645,-10587.73,0.00038799,2]
[354496401,1740538248654,-1387.37,0.00038799,2]
[354496402,1740538248663,-2781.84,0.00038799,2]
[354496403,1740538248673,-1916.86,0.00038799,2]
[354496404,1740538248683,-816.87,0.00038799,2]
[354496405,1740538248692,-66.66709339,0.00038799,2]
[354496406,1740538248750,-1207.20290661,0.00038799,2]
[354496407,1740538248759,-500.0,0.00038799,2]
[354496408,1740538248769,-1029.38,0.00038799,2]
[354496409,1740538248779,-592.27,0.00038799,2]
[354496410,1740538248787,-500.0,0.00038799,2]
[354496411,1740538248797,-1925.22,0.00038799,2]
[354496412,1740538248807,-500.67307532,0.00038799,2]
[354496413,1740538248816,-500.0,0.00038799,2]
[354496414,1740538248825,-2964.96,0.00038799,2]
[354496415,1740538248835,-500.0,0.00038799,2]
[354496416,1740538248844,-1295.56,0.00038799,2]
[354496417,1740538248855,-283.07313115,0.00038799,2]
[354496418,1740538248866,-216.92686885,0.00038799,2]
[354496419,1740538248876,-500.0,0.00038799,2]
[354496420,1740538248885,-500.0,0.00038799,2]
[354496421,1740538248894,-500.0,0.00038799,2]
[354496422,1740538248903,-709.68,0.00038799,2]
[354496423,1740538248912,-156.61111321,0.00038799,2]
[354496424,1740538248921,-500.0,0.00038799,2]
[354496425,1740538248931,-500.0,0.00038799,2]
[354496426,1740538248940,-500.90807472,0.00038799,2]
[354496427,1740538248950,-572.76,0.00038799,2]
[354496428,1740538248959,-583.57,0.00038799,2]
[354496429,1740538248968,-500.0,0.00038799,2]
[354496430,1740538248977,-2064.01694575,0.00038799,2]
[354496432,1740539359135,-162.3690496,0.000259,60]
[354496433,1740539359157,-310.0,0.00026,120]
[354496434,1740539359179,-33.81400717,0.00035068,30]
[354496488,1740539434962,-1966.18599283,0.00035068,30]
[354496491,1740539434973,-2000.0,0.00035342,30]
[354496493,1740539434982,-622.7660758,0.00035352,2]
[354496495,1740539434992,-271.2186754,0.00035417,2]
[354496497,1740539435002,-400.0,0.00035615,2]
[354496499,1740539435012,-2000.0,0.00035616,30]
[354496501,1740539435022,-2000.0,0.0003589,30]
[354496503,1740539435031,-2000.0,0.00036164,30]
[354496505,1740539435040,-2000.0,0.00036438,30]
[354496507,1740539435051,-1688.7655558,0.00036457,2]
[354496509,1740539435060,-2000.0,0.00036712,30]
[354496510,1740539435069,-2000.0,0.00036986,30]
[354496512,1740539435079,-152.0,0.00036998,2]
[354496514,1740539435088,-2000.0,0.0003726,30]
[354496516,1740539435098,-2000.0,0.00037534,30]
[354496518,1740539435107,-2000.0,0.00037808,30]
[354496520,1740539435117,-500.0,0.00038,120]
[354496522,1740539435125,-50000.0,0.00038,120]
[354496524,1740539435135,-2000.0,0.00038082,30]
[354496526,1740539435145,-560.0,0.00038163,2]
[354496529,1740539435155,-150.66526203,0.00038256,2]
[354496532,1740539435164,-1754.81,0.00038336,3]
[354496535,1740539435174,-658.1,0.00038336,3]
[354496538,1740539435184,-877.41,0.00038345,3]
[354496540,1740539435193,-438.7,0.00038345,3]
[354496542,1740539435203,-219.35,0.00038345,3]
[354496544,1740539435213,-12720.99027737,0.00038346,3]
[354496546,1740539435223,-159.551,0.00038346,51]
[354496548,1740539435232,-232.98706284,0.00038355,10]
[354496550,1740539435241,-336.80033393,0.00038355,2]
[354496554,1740539435263,-163.19966607,0.00038355,2]
[354496556,1740539435272,-492.98234495,0.00038355,15]
[354496558,1740539435283,-7.01765505,0.00038355,15]
[354496560,1740539435294,-301.54197758,0.00038355,15]
[354496562,1740539435303,-500.0,0.00038355,15]
[354496564,1740539435313,-500.0,0.00038355,2]
[354496566,1740539435322,-500.0,0.00038355,15]
[354496568,1740539435331,-500.0,0.00038355,2]
[354496570,1740539435341,-500.0,0.00038355,15]
[354496571,1740539435351,-500.0,0.00038355,15]
[354496573,1740539435361,-500.0,0.00038355,2]
[354496597,1740539435589,-165.48058957,0.00038355,15]
[354496599,1740539435599,-500.0,0.00038355,2]
[354496602,1740539435609,-406.5977978,0.00038355,15]
[354496604,1740539435618,-500.0,0.00038355,15]
[354496606,1740539435627,-500.0,0.00038355,2]
[354496608,1740539435637,-500.0,0.00038355,15]
[354496610,1740539435646,-500.0,0.00038355,2]
[354496612,1740539435656,-500.0,0.00038355,2]
[354496613,1740539435665,-500.0,0.00038355,15]
[354496614,1740539435675,-500.0,0.00038355,15]
[354496615,1740539435684,-500.0,0.00038355,2]
[354496616,1740539435693,-500.0,0.00038355,15]
[354496617,1740539435703,-500.0,0.00038355,2]
[354496618,1740539435713,-500.0,0.00038355,2]
[354496619,1740539435723,-500.0,0.00038355,15]
[354496620,1740539435732,-568.62892502,0.00038355,2]
[354496621,1740539435742,-500.0,0.00038355,15]
[354496622,1740539435752,-500.0,0.00038355,2]
[354496623,1740539435762,-500.0,0.00038355,15]
[354496624,1740539435771,-500.0,0.00038355,15]
[354496625,1740539435780,-500.0,0.00038355,15]
[354496626,1740539435790,-500.0,0.00038355,15]
[354496627,1740539435800,-500.0,0.00038355,15]
[354496628,1740539435809,-500.0,0.00038355,15]
[354496629,1740539435819,-500.0,0.00038355,15]
[354496630,1740539435828,-500.0,0.00038355,15]
[354496631,1740539435837,-500.0,0.00038355,15]
[354496632,1740539435846,-500.0,0.00038355,15]
[354496633,1740539435856,-500.0,0.00038355,15]
[354496634,1740539435866,-407.27562107,0.00038355,15]
[354496635,1740539435875,-500.0,0.00038355,15]
[354496636,1740539435885,-165.36876399,0.00038355,15]
[354496637,1740539435895,-500.0,0.00038355,15]
[354496638,1740539435904,-383.97795737,0.00038355,15]
[354496639,1740539435914,-500.0,0.00038355,15]
[354496640,1740539435923,-500.0,0.00038355,15]
[354496641,1740539435933,-460.82069774,0.00038355,15]
[354496642,1740539435942,-307.90060706,0.00038355,15]
[354496643,1740539435952,-501.66864795,0.00038356,2]
[354496644,1740539435968,-500.0,0.00038356,2]
[354496645,1740539435977,-169.41305438,0.00038356,2]
[354496646,1740539435994,-332.00218856,0.00038356,2]
[354496647,1740539436005,-500.0,0.00038356,2]
[354496648,1740539436015,-500.0,0.00038356,2]
[354496650,1740539436024,-500.0,0.00038356,2]
[354496652,1740539436035,-500.0,0.00038356,2]
[354496654,1740539436045,-500.0,0.00038356,2]
[354496656,1740539436055,-500.0,0.00038356,2]
[354496658,1740539436064,-500.0,0.00038356,2]
[354496660,1740539436074,-401.66848242,0.00038356,2]
[354496662,1740539436084,-500.0,0.00038356,2]
[354496664,1740539436093,-609.27,0.00038356,2]
[354496666,1740539436103,-500.0,0.00038356,2]
[354496668,1740539436112,-501.14306455,0.00038356,2]
[354496670,1740539436122,-363.08186651,0.00038356,2]
[354496855,1740539437844,-167.41948346,0.00038356,2]
[354496857,1740539437854,-296.58051656,0.00038356,2]
[354496859,1740539437866,-203.41948344,0.00038356,2]
[354496861,1740539437875,-500.0,0.00038356,2]
[354496863,1740539437884,-500.0,0.00038356,2]
[354496865,1740539437893,-500.0,0.00038356,2]
[354496867,1740539437902,-573.15,0.00038356,2]
[354496869,1740539437911,-500.0,0.00038356,2]
[354496871,1740539437921,-500.0,0.00038356,2]
[354496873,1740539437930,-500.80758151,0.00038356,2]
[354496875,1740539437939,-500.0,0.00038356,2]
[354496877,1740539437948,-559.23,0.00038356,2]
[354496879,1740539437960,-500.0,0.00038356,2]
[354496881,1740539437971,-500.0,0.00038356,2]
[354496883,1740539437981,-532.10514834,0.00038356,2]
[354496885,1740539437990,-500.0,0.00038356,2]
[354496887,1740539437999,-500.0,0.00038356,2]
[354496888,1740539438009,-500.0,0.00038356,2]
[354496890,1740539438017,-504.35486072,0.00038356,2]
[354496892,1740539438027,-500.0,0.00038356,2]
[354496894,1740539438037,-500.0,0.00038356,2]
[354496898,1740539438047,-671.23,0.00038356,2]
[354496900,1740539438057,-500.0,0.00038356,2]
[354496902,1740539438066,-500.0,0.00038356,2]
[354496904,1740539438075,-500.0,0.00038356,2]
[354496906,1740539438085,-967.1,0.00038356,2]
[354496908,1740539438094,-500.0,0.00038356,2]
[354496910,1740539438103,-669.13,0.00038356,2]
[354496912,1740539438112,-668.31,0.00038356,2]
[354496914,1740539438121,-1230.57,0.00038356,2]
[354496916,1740539438130,-500.0,0.00038356,2]
[354496918,1740539438140,-500.0,0.00038356,2]
[354496920,1740539438149,-500.0,0.00038356,2]
[354496922,1740539438157,-500.0,0.00038356,2]
[354496924,1740539438167,-507.23646609,0.00038356,2]
[354496926,1740539438176,-500.0,0.00038356,2]
[354496928,1740539438185,-502.92483552,0.00038356,2]
[354496930,1740539438195,-500.0,0.00038356,2]
[354496932,1740539438204,-500.0,0.00038356,2]
[354496934,1740539438215,-502.65003001,0.00038356,2]
[354496936,1740539438224,-500.0,0.00038356,2]
[354496938,1740539438234,-501.44224341,0.00038356,2]
[354496940,1740539438244,-500.0,0.00038356,2]
[354496942,1740539438253,-500.0,0.00038356,2]
[354496944,1740539438262,-579.5,0.00038356,2]
[354496946,1740539438271,-1043.77,0.00038356,120]
[354496948,1740539438281,-500.0,0.00038356,2]
[354496950,1740539438290,-1070.21,0.00038356,2]
[354496952,1740539438300,-1303.81,0.00038356,2]
[354496954,1740539438310,-500.0,0.00038356,2]
[354496956,1740539438325,-500.0,0.00038356,2]
[354496958,1740539438334,-503.12442197,0.00038356,2]
[354496960,1740539438343,-500.0,0.00038356,2]
[354496962,1740539438353,-1040.46,0.00038356,2]
[354496964,1740539438363,-500.0,0.00038356,2]
[354496966,1740539438372,-500.0,0.00038356,2]
[354496968,1740539438381,-382.00034945,0.00038356,2]
[354496970,1740539438390,-500.0,0.00038356,2]
[354496972,1740539438399,-500.0,0.00038356,2]
[354496974,1740539438408,-500.0,0.00038356,2]
[354496976,1740539438418,-922.71,0.00038356,2]
[354496978,1740539438427,-779.76,0.00038356,2]
[354496980,1740539438436,-1739.41,0.00038356,2]
[354496982,1740539438445,-500.0,0.00038356,2]
[354496984,1740539438455,-500.0,0.00038356,2]
[354496986,1740539438465,-502.91,0.00038356,2]
[354496988,1740539438474,-500.0,0.00038356,2]
[354496990,1740539438483,-500.0,0.00038356,2]
[354496992,1740539438492,-500.0,0.00038356,2]
[354496994,1740539438501,-2226.36,0.00038356,2]
[354496996,1740539438510,-500.0,0.00038356,2]
[354496998,1740539438519,-108.25140879,0.00038356,2]
[354497001,1740539438534,-499.69638287,0.00038356,2]
[354497003,1740539438542,-500.0,0.00038356,2]
[354497005,1740539438551,-1512.56,0.00038356,2]
[354497007,1740539438560,-311.41681573,0.00038356,2]
[354497009,1740539438569,-500.0,0.00038356,2]
[354497011,1740539438578,-502.07240258,0.00038356,2]
[354497013,1740539438587,-500.0,0.00038356,2]
[354497015,1740539438596,-504.14529917,0.00038356,2]
[354497017,1740539438605,-500.0,0.00038356,2]
[354497019,1740539438615,-500.8048254,0.00038356,2]
[354497021,1740539438624,-500.0,0.00038356,2]
[354497023,1740539438634,-1755.11,0.00038356,2]
[354497025,1740539438643,-613.31,0.00038356,2]
[354497027,1740539438652,-500.0,0.00038356,2]
[354497029,1740539438665,-500.0,0.00038356,2]
[354497032,1740539438677,-500.80761194,0.00038356,2]
[354497034,1740539438690,-500.0,0.00038356,2]
[354497036,1740539438703,-777.2,0.00038356,2]
[354497039,1740539438716,-501.89024376,0.00038356,2]
[354497041,1740539438727,-503.35308598,0.00038356,2]
[354497043,1740539438737,-501.20598005,0.00038356,2]
[354497045,1740539438750,-500.0,0.00038356,2]
[354497048,1740539438762,-501.91662596,0.00038356,2]
[354497050,1740539438774,-500.0,0.00038356,2]
[354497052,1740539438785,-500.0,0.00038356,2]
[354497055,1740539438797,-1265.01,0.00038356,2]
[354497057,1740539438809,-803.92,0.00038356,2]
[354497058,1740539438821,-500.0,0.00038356,2]
[354497060,1740539438833,-500.0,0.00038356,2]
[354497062,1740539438845,-500.0,0.00038356,2]
[354497064,1740539438858,-500.0,0.00038356,2]
[354497066,1740539438870,-500.0,0.00038356,2]
[354497068,1740539438882,-500.0,0.00038356,2]
[354497070,1740539438893,-500.0,0.00038356,2]
[354497072,1740539438905,-500.0,0.00038356,2]
[354497074,1740539438916,-1045.33,0.00038356,2]
[354497076,1740539438926,-500.79905131,0.00038356,2]
[354497078,1740539438939,-500.0,0.00038356,2]
[354497080,1740539438951,-500.0,0.00038356,2]
[354497082,1740539438963,-500.0,0.00038356,2]
[354497084,1740539438977,-961.73,0.00038356,2]
[354497086,1740539438987,-239.16623068,0.00038356,2]
[354497087,1740539438997,-500.0,0.00038356,2]
[354497089,1740539439011,-500.0,0.00038356,2]
[354497091,1740539439022,-500.0,0.00038356,2]
[354497093,1740539439032,-500.0,0.00038356,2]
[354497095,1740539439045,-483.78439709,0.00038356,2]
[354497097,1740539439056,-500.0,0.00038356,2]
[354497099,1740539439068,-500.0,0.00038356,2]
[354497101,1740539439079,-500.0,0.00038356,2]
[354497103,1740539439090,-1727.45,0.00038356,2]
[354497105,1740539439103,-539.99,0.00038356,2]
[354497107,1740539439115,-500.0,0.00038356,2]
[354497108,1740539439127,-500.95895534,0.00038356,2]
[354497111,1740539439139,-500.0,0.00038356,2]
[354497113,1740539439152,-500.0,0.00038356,2]
[354497114,1740539439163,-500.0,0.00038356,2]
[354497116,1740539439174,-500.0,0.00038356,2]
[354497118,1740539439184,-500.0,0.00038356,2]
[354497120,1740539439195,-500.0,0.00038356,2]
[354497122,1740539439205,-500.0,0.00038356,2]
[354497124,1740539439216,-500.0,0.00038356,2]
[354497126,1740539439228,-502.73204439,0.00038356,2]
[354497128,1740539439242,-2644.83,0.00038356,2]
[354497130,1740539439255,-1172.73,0.00038356,2]
[354497132,1740539439267,-500.0,0.00038356,2]
[354497134,1740539439277,-500.0,0.00038356,2]
[354497136,1740539439288,-503.75331331,0.00038356,2]
[354497138,1740539439299,-500.0,0.00038356,2]
[354497140,1740539439309,-1289.64,0.00038356,2]
[354497142,1740539439321,-1320.01,0.00038356,2]
[354497144,1740539439332,-500.0,0.00038356,2]
[354497145,1740539439342,-500.0,0.00038356,2]
[354497147,1740539439352,-500.0,0.00038356,2]
[354497149,1740539439362,-503.10597956,0.00038356,2]
[354497151,1740539439373,-500.0,0.00038356,2]
[354497153,1740539439383,-500.0,0.00038356,2]
[354497155,1740539439396,-602.65,0.00038356,2]
[354497157,1740539439407,-547.46,0.00038356,2]
[354497159,1740539439421,-922.72,0.00038356,2]
[354497161,1740539439431,-500.0,0.00038356,2]
[354497163,1740539439441,-277.63009343,0.00038356,2]
[354497165,1740539439452,-483.68637877,0.00038356,2]
[354497167,1740539439463,-500.0,0.00038356,2]
[354497170,1740539439475,-500.0,0.00038356,2]
[354497173,1740539439485,-500.0,0.00038356,2]
[354497176,1740539439496,-501.84827127,0.00038356,2]
[354497179,1740539439506,-501.91068199,0.00038356,2]
[354497183,1740539439517,-500.0,0.00038356,2]
[354497186,1740539439528,-500.0,0.00038356,2]
[354497189,1740539439539,-500.0,0.00038356,2]
[354497193,1740539439550,-1000.0,0.00038356,2]
[354497196,1740539439561,-939.44,0.00038356,2]
[354497200,1740539439572,-500.0,0.00038356,2]
[354497203,1740539439582,-500.0,0.00038356,2]
[354497206,1740539439593,-500.0,0.00038356,2]
[354497209,1740539439603,-401.13807528,0.00038356,2]
[354497212,1740539439614,-597.44,0.00038356,2]
[354497216,1740539439625,-500.0,0.00038356,2]
[354497219,1740539439636,-500.0,0.00038356,2]
[354497222,1740539439647,-644.21,0.00038356,2]
[354497225,1740539439657,-425.52038577,0.00038356,2]
[354497228,1740539439668,-710.8,0.00038356,2]
[354497230,1740539439679,-503.92680518,0.00038356,2]
[354497234,1740539439690,-500.0,0.00038356,2]
[354497237,1740539439701,-500.0,0.00038356,2]
[354497240,1740539439712,-500.0,0.00038356,2]
[354497242,1740539439724,-500.0,0.00038356,2]
[354497244,1740539439734,-500.0,0.00038356,2]
[354497246,1740539439744,-510.92723203,0.00038356,2]
[354497248,1740539439755,-679.93,0.00038356,2]
[354497250,1740539439765,-500.0,0.00038356,2]
[354497252,1740539439775,-2082.79,0.00038356,2]
[354497254,1740539439786,-500.0,0.00038356,2]
[354497256,1740539439796,-500.0,0.00038356,2]
[354497258,1740539439807,-517.61,0.00038356,2]
[354497260,1740539439817,-500.0,0.00038356,2]
[354497262,1740539439828,-500.0,0.00038356,2]
[354497264,1740539439838,-500.0,0.00038356,2]
[354497266,1740539439849,-500.0,0.00038356,2]
[354497268,1740539439860,-1106.88,0.00038356,2]
[354497270,1740539439871,-500.0,0.00038356,2]
[354497272,1740539439882,-500.0,0.00038356,2]
[354497274,1740539439892,-500.0,0.00038356,2]
[354497276,1740539439903,-500.0,0.00038356,2]
[354497278,1740539439913,-500.0,0.00038356,2]
[354497279,1740539439924,-500.0,0.00038356,2]
[354497281,1740539439935,-500.0,0.00038356,2]
[354497283,1740539439947,-500.0,0.00038356,2]
[354497285,1740539439960,-500.0,0.00038356,2]
[354497287,1740539439972,-500.0,0.00038356,2]
[354497289,1740539439983,-977.54,0.00038356,2]
[354497291,1740539439993,-500.0,0.00038356,2]
[354497293,1740539440006,-500.0,0.00038356,2]
[354497295,1740539440017,-500.0,0.00038356,2]
[354497297,1740539440028,-686.91,0.00038356,2]
[354497299,1740539440040,-500.0,0.00038356,2]
[354497301,1740539440051,-510.49879309,0.00038356,50]
[354497303,1740539440062,-609.83553474,0.00038356,2]
[354497305,1740539440074,-500.0,0.00038356,2]
[354497307,1740539440085,-564.99,0.00038356,2]
[354497309,1740539440096,-744.72,0.00038356,2]
[354497311,1740539440107,-500.0,0.00038356,2]
[354497313,1740539440118,-500.0,0.00038356,2]
[354497315,1740539440130,-500.0,0.00038356,2]
[354497317,1740539440140,-501.49900631,0.00038356,2]
[354497319,1740539440150,-500.0,0.00038356,2]
[354497321,1740539440161,-500.0,0.00038356,2]
[354497322,1740539440172,-500.0,0.00038356,2]
[354497325,1740539440183,-500.0,0.00038356,2]
[354497326,1740539440194,-1941.88,0.00038356,2]
[354497329,1740539440206,-500.0,0.00038356,2]
[354497331,1740539440217,-500.0,0.00038356,2]
[354497333,1740539440228,-500.0,0.00038356,2]
[354497335,1740539440238,-500.0,0.00038356,2]
[354497337,1740539440249,-508.44856862,0.00038356,2]
[354497339,1740539440261,-500.0,0.00038356,2]
[354497341,1740539440272,-500.0,0.00038356,2]
[354497343,1740539440283,-500.0,0.00038356,2]
[354497345,1740539440293,-500.9151724,0.00038356,2]
[354497347,1740539440304,-500.0,0.00038356,2]
[354497349,1740539440315,-500.0,0.00038356,2]
[354497351,1740539440326,-500.0,0.00038356,2]
[354497353,1740539440337,-500.0,0.00038356,2]